fUSD/lending_fUSD_20260624
["ID","MTS","AMOUNT","RATE_DAILY","PERIOD"]
[426292910,1782250242000,-500.0,0.00021716,2]
[426292889,1782250242000,-680.0,0.00021212,3]
[426292887,1782250242000,-452.99296183,0.000212,2]
[426292886,1782250242000,-500.0,0.00021065,2]
[426292891,1782250242000,-785.0,0.00021271,2]
[426292902,1782250242000,-2157.14243826,0.0002154,2]
[426292892,1782250242000,-1022.25,0.00021273,2]
[426292893,1782250242000,-2951.45,0.00021273,2]
[426292901,1782250242000,-200.0,0.0002154,2]
[426292890,1782250242000,-1149.59,0.00021227,2]
[426292895,1782250242000,-5481.96,0.0002137,2]
[426292894,1782250242000,-49442.71,0.00021273,2]
[426292897,1782250242000,-195.20438385,0.00021406,3]
[426292896,1782250242000,-452.99296183,0.000214,2]
[426292900,1782250242000,-151.0,0.0002154,2]
[426292898,1782250242000,-2000.0,0.00021474,2]
[426292903,1782250242000,-452.99296183,0.000216,2]
[426292905,1782250242000,-7044.9,0.00021607,2]
[426292914,1782250242000,-172.60219192,0.00021826,3]
[426292913,1782250242000,-680.0,0.00021818,3]
[426292911,1782250242000,-500.0,0.00021716,2]
[426292907,1782250242000,-500.0,0.00021697,2]
[426292904,1782250242000,-785.0,0.00021603,2]
[426292908,1782250242000,-500.0,0.00021697,2]
[426292909,1782250242000,-500.0,0.00021716,2]
[426292912,1782250242000,-249.4689752,0.00021716,2]
[426292916,1782250242000,-452.99296183,0.000219,2]
[426292899,1782250242000,-500.0,0.00021474,2]
[426292941,1782250242000,-2236.95670847,0.00022088,2]
[426292945,1782250242000,-500.0,0.00022347,2]
[426292983,1782250242000,-50000.0,0.00023,2]
[426292987,1782250242000,-50000.0,0.00023,2]
[426292985,1782250242000,-50000.0,0.00023,2]
[426292989,1782250242000,-50000.0,0.00023,2]
[426292982,1782250242000,-50000.0,0.00023,2]
[426292980,1782250242000,-257.0,0.00023,2]
[426292988,1782250242000,-50000.0,0.00023,2]
[426292986,1782250242000,-50000.0,0.00023,2]
[426292990,1782250242000,-50000.0,0.00023,2]
[426292998,1782250242000,-692.0,0.00023,2]
[426292995,1782250242000,-1545.0,0.00023,2]
[426292991,1782250242000,-8224.43,0.00023,2]
[426292984,1782250242000,-50000.0,0.00023,2]
[426292992,1782250242000,-1037.0,0.00023,2]
[426292993,1782250242000,-356.0,0.00023,2]
[426293000,1782250242000,-216.39158367,0.00023,7]
[426292999,1782250242000,-183.0,0.00023,2]
[426292997,1782250242000,-154.0,0.00023,2]
[426292994,1782250242000,-374.0,0.00023,2]
[426293002,1782250242000,-545.08,0.00023,2]
[426293001,1782250242000,-2175.0,0.00023,2]
[426293003,1782250242000,-365.0,0.00023,2]
[426293005,1782250242000,-680.0,0.0002303,4]
[426293006,1782250242000,-1113.58255414,0.00023171,2]
[426293004,1782250242000,-500.0,0.00023018,2]
[426292943,1782250242000,-150.0,0.00022333,2]
[426292996,1782250242000,-1538.77,0.00023,7]
[426292981,1782250242000,-233.0,0.00023,2]
[426292962,1782250242000,-1684.66,0.00022466,2]
[426292975,1782250242000,-150.49757157,0.000229,2]
[426292979,1782250242000,-1768.0,0.00023,2]
[426292947,1782250242000,-1229.0,0.00022397,2]
[426292949,1782250242000,-6083.0,0.00022397,2]
[426292951,1782250242000,-1691.3548266,0.00022407,2]
[426292946,1782250242000,-974.8,0.00022353,2]
[426292950,1782250242000,-1691.3548266,0.00022407,2]
[426292952,1782250242000,-1691.3548266,0.00022407,2]
[426292953,1782250242000,-151.80846408,0.00022407,2]
[426292955,1782250242000,-680.0,0.00022424,4]
[426292966,1782250242000,-785.0,0.000226,2]
[426292958,1782250242000,-253.03,0.00022466,2]
[426292954,1782250242000,-151.80846406,0.00022407,2]
[426292967,1782250242000,-172.08,0.00022603,2]
[426292948,1782250242000,-3562.0,0.00022397,2]
[426292956,1782250242000,-221.11463937,0.00022426,2]
[426292964,1782250242000,-1080.61,0.00022501,7]
[426292969,1782250242000,-209.98865178,0.00022608,2]
[426292968,1782250242000,-151.44105201,0.00022608,2]
[426292971,1782250242000,-200.0,0.00022636,2]
[426292970,1782250242000,-151.0,0.00022636,2]
[426292976,1782250242000,-785.0,0.00022933,2]
[426292974,1782250242000,-500.0,0.0002287,2]
[426292977,1782250242000,-179.0,0.00023,2]
[426292978,1782250242000,-1218.0,0.00023,2]
[426292973,1782250242000,-886.59934997,0.00022648,2]
[426292965,1782250242000,-150.0,0.0002254,2]
[426292972,1782250242000,-2319.72410669,0.00022636,2]
[426293039,1782250243000,-374.0,0.00024,2]
[426293042,1782250243000,-692.0,0.00024,2]
[426293043,1782250243000,-183.0,0.00024,2]
[426293036,1782250243000,-50000.0,0.00024,2]
[426293037,1782250243000,-1037.0,0.00024,2]
[426293038,1782250243000,-356.0,0.00024,2]
[426293041,1782250243000,-166.94882961,0.00024,2]
[426293031,1782250243000,-1218.0,0.00024,2]
[426293044,1782250243000,-365.0,0.00024,2]
[426293045,1782250243000,-3221.0,0.00024067,5]
[426293054,1782250243000,-500.0,0.000243,2]
[426293046,1782250243000,-2585.0,0.00024067,5]
[426293048,1782250243000,-2000.0,0.00024277,2]
[426293058,1782250243000,-153.17393377,0.000243,2]
[426293047,1782250243000,-680.0,0.00024242,6]
[426293052,1782250243000,-2586.85809042,0.0002428,2]
[426293056,1782250243000,-187.78006524,0.000243,2]
[426293049,1782250243000,-500.0,0.00024277,2]
[426293051,1782250243000,-200.0,0.0002428,2]
[426293059,1782250243000,-158.19471084,0.000243,2]
[426293035,1782250243000,-233.0,0.00024,2]
[426293040,1782250243000,-1545.0,0.00024,2]
[426293029,1782250243000,-785.0,0.0002393,2]
[426293025,1782250243000,-2494.55939288,0.00023732,2]
[426293030,1782250243000,-179.0,0.00024,2]
[426293012,1782250243000,-7044.9,0.00023214,7]
[426293008,1782250243000,-151.0,0.00023184,2]
[426293007,1782250243000,-241.66555425,0.00023173,2]
[426293011,1782250243000,-551.84999942,0.0002321,2]
[426293010,1782250243000,-2405.55389863,0.00023184,2]
[426293009,1782250243000,-200.0,0.00023184,2]
[426293013,1782250243000,-785.0,0.00023265,2]
[426293014,1782250243000,-250.0,0.00023288,14]
[426293016,1782250243000,-1046.13,0.0002335,7]
[426293018,1782250243000,-785.0,0.00023598,2]
[426293017,1782250243000,-206.0,0.00023354,2]
[426293033,1782250243000,-50000.0,0.00024,5]
[426293015,1782250243000,-403.22,0.000233,14]
[426293053,1782250243000,-405.32554294,0.00024293,2]
[426293023,1782250243000,-151.0,0.00023732,2]
[426293024,1782250243000,-200.0,0.00023732,2]
[426293020,1782250243000,-150.0,0.00023667,2]
[426293021,1782250243000,-389017.6375915,0.00023703,2]
[426293022,1782250243000,-500.0,0.00023708,2]
[426293027,1782250243000,-1538.77,0.000238,7]
[426293026,1782250243000,-711.03930691,0.00023791,7]
[426293028,1782250243000,-36706.0,0.00023897,2]
[426293032,1782250243000,-1768.0,0.00024,2]
[426293034,1782250243000,-257.0,0.00024,2]
[426293019,1782250243000,-680.0,0.00023636,5]
[426293055,1782250243000,-1915.47834585,0.000243,2]
[426293050,1782250243000,-151.0,0.0002428,2]
[426293062,1782250243000,-621.78829552,0.000243,2]
[426293084,1782250243000,-152.0,0.000243,2]
[426293092,1782250243000,-152.0,0.000243,2]
[426293089,1782250243000,-500.0,0.000243,2]
[426293093,1782250243000,-500.0,0.000243,2]
[426293096,1782250243000,-500.0,0.000243,2]
[426293098,1782250243000,-500.0,0.000243,2]
[426293099,1782250243000,-152.0,0.000243,2]
[426293108,1782250243000,-153.17393377,0.00024355,2]
[426293100,1782250243000,-500.0,0.000243,2]
[426293109,1782250243000,-151.0,0.00024355,2]
[426293094,1782250243000,-152.0,0.000243,2]
[426293097,1782250243000,-152.0,0.000243,2]
[426293105,1782250243000,-152.0,0.000243,2]
[426293101,1782250243000,-500.0,0.000243,2]
[426293107,1782250243000,-974.8,0.00024324,2]
[426293102,1782250243000,-152.0,0.000243,2]
[426293104,1782250243000,-152.0,0.000243,2]
[426293103,1782250243000,-500.0,0.000243,2]
[426293110,1782250243000,-151.0,0.00024355,2]
[426293057,1782250243000,-155.64062986,0.000243,2]
[426293113,1782250243000,-153.17393377,0.0002441,2]
[426293112,1782250243000,-551.81804913,0.00024399,2]
[426293106,1782250243000,-152.0,0.000243,2]
[426293090,1782250243000,-152.0,0.000243,2]
[426293111,1782250243000,-886.59934997,0.00024399,2]
[426293087,1782250243000,-500.0,0.000243,2]
[426293085,1782250243000,-500.0,0.000243,2]
[426293060,1782250243000,-527.32278436,0.000243,2]
[426293072,1782250243000,-628.78788257,0.000243,2]
[426293064,1782250243000,-151.0,0.000243,2]
[426293071,1782250243000,-500.0,0.000243,2]
[426293070,1782250243000,-151.0,0.000243,2]
[426293068,1782250243000,-157.41989846,0.000243,2]
[426293066,1782250243000,-500.0,0.000243,2]
[426293067,1782250243000,-578.20924308,0.000243,2]
[426293063,1782250243000,-174.61919141,0.000243,2]
[426293074,1782250243000,-152.0,0.000243,2]
[426293073,1782250243000,-187.78006524,0.000243,2]
[426293065,1782250243000,-8565.75555911,0.000243,2]
[426293075,1782250243000,-1157.22492116,0.000243,2]
[426293076,1782250243000,-187.78006525,0.000243,2]
[426293086,1782250243000,-152.0,0.000243,2]
[426293083,1782250243000,-646.65982734,0.000243,2]
[426293080,1782250243000,-152.0,0.000243,2]
[426293091,1782250243000,-500.0,0.000243,2]
[426293082,1782250243000,-500.0,0.000243,2]
[426293079,1782250243000,-187.78006524,0.000243,2]
[426293078,1782250243000,-187.78006524,0.000243,2]
[426293077,1782250243000,-500.0,0.000243,2]
[426293081,1782250243000,-151.0,0.000243,2]
[426293088,1782250243000,-152.0,0.000243,2]
[426293200,1782250244000,-518.5,0.00024848,2]
[426293205,1782250244000,-181.08010149,0.00024848,2]
[426293203,1782250244000,-158.19471084,0.00024848,2]
[426293204,1782250244000,-527.32278436,0.00024848,2]
[426293214,1782250244000,-151.0,0.0002485,2]
[426293196,1782250244000,-7044.9,0.00024822,7]
[426293202,1782250244000,-1915.47834585,0.00024848,2]
[426293197,1782250244000,-151.0,0.00024828,2]
[426293193,1782250244000,-153.17393377,0.00024795,2]
[426293199,1782250244000,-2682.57183977,0.00024828,2]
[426293192,1782250244000,-5260.63529455,0.00024781,7]
[426293194,1782250244000,-151.0,0.00024795,2]
[426293210,1782250244000,-286.15596075,0.00024848,2]
[426293198,1782250244000,-200.0,0.00024828,2]
[426293195,1782250244000,-151.0,0.00024795,2]
[426293191,1782250244000,-37721.26356545,0.00024781,7]
[426293189,1782250244000,-151.0,0.0002474,2]
[426293187,1782250244000,-150.0,0.000247,2]
[426293201,1782250244000,-217.15233878,0.00024848,2]
[426293209,1782250244000,-194.72792766,0.00024848,2]
[426293213,1782250244000,-153.17393385,0.0002485,2]
[426293212,1782250244000,-680.0,0.00024848,6]
[426293190,1782250244000,-151.0,0.0002474,2]
[426293229,1782250244000,-363.47364359,0.00025,2]
[426293230,1782250244000,-392.62523041,0.00025,2]
[426293227,1782250244000,-50000.0,0.00025,2]
[426293228,1782250244000,-1037.7031038,0.00025,2]
[426293224,1782250244000,-1785.94292014,0.00025,2]
[426293217,1782250244000,-151.0,0.00024905,2]
[426293225,1782250244000,-259.0,0.00025,2]
[426293219,1782250244000,-151.0,0.0002496,2]
[426293215,1782250244000,-151.0,0.0002485,2]
[426293222,1782250244000,-1220.25227181,0.00025,2]
[426293216,1782250244000,-150.0,0.0002485,2]
[426293221,1782250244000,-191.44081729,0.00025,2]
[426293218,1782250244000,-151.0,0.00024905,2]
[426293226,1782250244000,-249.0,0.00025,2]
[426293220,1782250244000,-151.0,0.0002496,2]
[426293208,1782250244000,-628.78788257,0.00024848,2]
[426293211,1782250244000,-151.0,0.00024848,2]
[426293206,1782250244000,-8882.6885148,0.00024848,2]
[426293207,1782250244000,-157.41989846,0.00024848,2]
[426293223,1782250244000,-50000.0,0.00025,7]
[426293188,1782250244000,-153.17393377,0.0002474,2]
[426293184,1782250244000,-153.17393377,0.00024685,2]
[426293133,1782250244000,-1000.0,0.00024657,2]
[426293134,1782250244000,-1000.0,0.00024657,2]
[426293135,1782250244000,-1000.0,0.00024657,2]
[426293144,1782250244000,-1000.0,0.00024657,2]
[426293138,1782250244000,-1000.0,0.00024657,2]
[426293142,1782250244000,-1000.0,0.00024657,2]
[426293131,1782250244000,-151.0,0.0002463,2]
[426293136,1782250244000,-1000.0,0.00024657,2]
[426293140,1782250244000,-1000.0,0.00024657,2]
[426293137,1782250244000,-1000.0,0.00024657,2]
[426293141,1782250244000,-1000.0,0.00024657,2]
[426293139,1782250244000,-1000.0,0.00024657,2]
[426293146,1782250244000,-250.0,0.00024658,16]
[426293145,1782250244000,-178.65,0.00024658,8]
[426293143,1782250244000,-1000.0,0.00024657,2]
[426293127,1782250244000,-187.30590878,0.00024579,2]
[426293130,1782250244000,-153.17393377,0.0002463,2]
[426293128,1782250244000,-1538.77,0.000246,7]
[426293185,1782250244000,-151.0,0.00024685,2]
[426293114,1782250244000,-151.0,0.0002441,2]
[426293120,1782250244000,-153.17393377,0.0002452,2]
[426293119,1782250244000,-151.0,0.00024465,2]
[426293118,1782250244000,-151.0,0.00024465,2]
[426293115,1782250244000,-151.0,0.0002441,2]
[426293117,1782250244000,-153.17393377,0.00024465,2]
[426293116,1782250244000,-285.0,0.00024421,2]
[426293122,1782250244000,-151.0,0.0002452,2]
[426293132,1782250244000,-151.0,0.0002463,2]
[426293123,1782250244000,-1915.47834585,0.00024574,2]
[426293124,1782250244000,-153.17393377,0.00024575,2]
[426293121,1782250244000,-151.0,0.0002452,2]
[426293125,1782250244000,-151.0,0.00024575,2]
[426293126,1782250244000,-151.0,0.00024575,2]
[426293155,1782250244000,-150.0,0.00024658,2]
[426293147,1782250244000,-1351.55,0.00024658,2]
[426293129,1782250244000,-2214.22,0.00024613,7]
[426293148,1782250244000,-1000.0,0.00024658,2]
[426293169,1782250244000,-150.0,0.00024658,2]
[426293179,1782250244000,-150.0,0.00024658,2]
[426293171,1782250244000,-150.0,0.00024658,2]
[426293168,1782250244000,-150.0,0.00024658,2]
[426293174,1782250244000,-150.0,0.00024658,2]
[426293175,1782250244000,-150.0,0.00024658,2]
[426293176,1782250244000,-150.0,0.00024658,2]
[426293178,1782250244000,-150.0,0.00024658,2]
[426293173,1782250244000,-150.0,0.00024658,2]
[426293177,1782250244000,-150.0,0.00024658,2]
[426293172,1782250244000,-150.0,0.00024658,2]
[426293183,1782250244000,-153.95356175,0.00024658,2]
[426293182,1782250244000,-150.0,0.00024658,2]
[426293181,1782250244000,-150.0,0.00024658,2]
[426293154,1782250244000,-150.0,0.00024658,2]
[426293170,1782250244000,-150.0,0.00024658,2]
[426293180,1782250244000,-150.0,0.00024658,2]
[426293186,1782250244000,-151.0,0.00024685,2]
[426293163,1782250244000,-150.0,0.00024658,2]
[426293161,1782250244000,-150.0,0.00024658,2]
[426293150,1782250244000,-150.0,0.00024658,2]
[426293152,1782250244000,-150.0,0.00024658,2]
[426293151,1782250244000,-150.0,0.00024658,2]
[426293153,1782250244000,-150.0,0.00024658,2]
[426293157,1782250244000,-150.0,0.00024658,2]
[426293156,1782250244000,-150.0,0.00024658,2]
[426293158,1782250244000,-150.0,0.00024658,2]
[426293149,1782250244000,-150.0,0.00024658,2]
[426293160,1782250244000,-150.0,0.00024658,2]
[426293159,1782250244000,-150.0,0.00024658,2]
[426293165,1782250244000,-150.0,0.00024658,2]
[426293164,1782250244000,-150.0,0.00024658,2]
[426293166,1782250244000,-150.0,0.00024658,2]
[426293162,1782250244000,-150.0,0.00024658,2]
[426293167,1782250244000,-150.0,0.00024658,2]
[426293247,1782250245000,-1000.0,0.00025121,2]
[426293252,1782250245000,-2781.82699784,0.00025376,2]
[426293251,1782250245000,-200.0,0.00025376,2]
[426293253,1782250245000,-101935.4041344,0.00025385,2]
[426293254,1782250245000,-537.6845,0.00025396,2]
[426293261,1782250245000,-628.78788257,0.00025396,2]
[426293255,1782250245000,-1915.47834585,0.00025396,2]
[426293258,1782250245000,-187.78006524,0.00025396,2]
[426293257,1782250245000,-527.32278436,0.00025396,2]
[426293260,1782250245000,-157.41989852,0.00025396,2]
[426293259,1782250245000,-9211.34798984,0.00025396,2]
[426293262,1782250245000,-201.93286098,0.00025396,2]
[426293264,1782250245000,-151.0,0.00025396,2]
[426293249,1782250245000,-69262.229641,0.00025251,2]
[426293256,1782250245000,-158.19471085,0.00025396,2]
[426293250,1782250245000,-151.0,0.00025376,2]
[426293239,1782250245000,-403.33,0.00025,2]
[426293246,1782250245000,-151.0,0.00025015,2]
[426293265,1782250245000,-1229.0,0.00025397,2]
[426293238,1782250245000,-403.33,0.00025,2]
[426293231,1782250245000,-1549.06220337,0.00025,2]
[426293235,1782250245000,-545.08,0.00025,2]
[426293232,1782250245000,-704.44932809,0.00025,2]
[426293234,1782250245000,-216.39158367,0.00025,7]
[426293233,1782250245000,-187.0,0.00025,2]
[426293237,1782250245000,-174.0,0.00025,7]
[426293236,1782250245000,-377.54919438,0.00025,2]
[426293240,1782250245000,-403.33,0.00025,2]
[426293242,1782250245000,-403.33,0.00025,2]
[426293245,1782250245000,-151.0,0.00025015,2]
[426293243,1782250245000,-403.33,0.00025,2]
[426293244,1782250245000,-403.33,0.00025,2]
[426293241,1782250245000,-403.33,0.00025,2]
[426293248,1782250245000,-1915.47834585,0.00025122,2]
[426293266,1782250245000,-3562.0,0.00025397,2]
[426293285,1782250245000,-169.59362332,0.00025486,2]
[426293273,1782250245000,-692.46006228,0.00025401,2]
[426293293,1782250245000,-175.31084528,0.00025486,2]
[426293289,1782250245000,-195.78918317,0.00025486,2]
[426293292,1782250245000,-177.93405763,0.00025486,2]
[426293291,1782250245000,-179.4469191,0.00025486,2]
[426293294,1782250245000,-175.31819921,0.00025486,2]
[426293290,1782250245000,-255.68796204,0.00025486,2]
[426293301,1782250245000,-172.49162341,0.00025528,2]
[426293296,1782250245000,-299.37661605,0.00025486,2]
[426293300,1782250245000,-1538.77,0.000255,7]
[426293298,1782250245000,-166.54316966,0.00025486,2]
[426293302,1782250245000,-220.83054131,0.00025528,2]
[426293297,1782250245000,-157.18233452,0.00025486,2]
[426293303,1782250245000,-168.50562813,0.00025528,2]
[426293304,1782250245000,-158.09656129,0.00025528,2]
[426293271,1782250245000,-191.05640388,0.00025401,2]
[426293295,1782250245000,-163.54425976,0.00025486,2]
[426293288,1782250245000,-303.8757755,0.00025486,2]
[426293299,1782250245000,-153.19464192,0.00025486,2]
[426293283,1782250245000,-200.0,0.00025428,2]
[426293268,1782250245000,-6083.0,0.00025397,2]
[426293286,1782250245000,-190.23267275,0.00025486,2]
[426293270,1782250245000,-178.4084614,0.00025401,2]
[426293272,1782250245000,-214.08395212,0.00025401,2]
[426293274,1782250245000,-181.78567049,0.00025401,2]
[426293278,1782250245000,-193.40652643,0.00025401,2]
[426293275,1782250245000,-207.72130027,0.00025401,2]
[426293277,1782250245000,-197.24388114,0.00025401,2]
[426293276,1782250245000,-152.15873166,0.00025401,2]
[426293280,1782250245000,-192.65723647,0.00025401,2]
[426293281,1782250245000,-154.98197297,0.00025401,2]
[426293282,1782250245000,-150.82547048,0.00025406,2]
[426293287,1782250245000,-206.08718176,0.00025486,2]
[426293284,1782250245000,-680.0,0.00025455,7]
[426293279,1782250245000,-190.82822975,0.00025401,2]
[426293331,1782250246000,-9501.05569064,0.00025944,2]
[426293334,1782250246000,-151.0,0.00025944,2]
[426293332,1782250246000,-628.78788257,0.00025944,2]
[426293326,1782250246000,-2884.75459676,0.00025924,2]
[426293328,1782250246000,-527.32278436,0.00025944,2]
[426293329,1782250246000,-1915.47834585,0.00025944,2]
[426293330,1782250246000,-194.72792766,0.00025944,2]
[426293333,1782250246000,-209.40437684,0.00025944,2]
[426293343,1782250246000,-974.8,0.00026296,2]
[426293335,1782250246000,-15239.35068509,0.00026,2]
[426293336,1782250246000,-250.0,0.00026027,18]
[426293340,1782250246000,-886.59934997,0.00026149,2]
[426293341,1782250246000,-1915.47834585,0.00026218,2]
[426293339,1782250246000,-643.0,0.000261,2]
[426293342,1782250246000,-15239.35068509,0.00026222,2]
[426293327,1782250246000,-557.5788265,0.00025944,2]
[426293351,1782250246000,-7044.9,0.00026429,7]
[426293337,1782250246000,-680.0,0.00026061,7]
[426293322,1782250246000,-514.0,0.00025869,2]
[426293306,1782250246000,-222.50078145,0.00025528,2]
[426293321,1782250246000,-525.84,0.00025786,2]
[426293346,1782250246000,-464.452095,0.00026372,2]
[426293305,1782250246000,-208.62526956,0.00025528,2]
[426293308,1782250246000,-154.82923488,0.00025528,2]
[426293307,1782250246000,-206.62903276,0.00025528,2]
[426293309,1782250246000,-190.67951842,0.00025528,2]
[426293310,1782250246000,-152.82036537,0.00025528,2]
[426293317,1782250246000,-1000.0,0.00025785,2]
[426293313,1782250246000,-197.16600127,0.00025528,2]
[426293325,1782250246000,-200.0,0.00025924,2]
[426293316,1782250246000,-1915.47834585,0.0002567,2]
[426293315,1782250246000,-179.46,0.00025644,2]
[426293312,1782250246000,-168.98768787,0.00025528,2]
[426293311,1782250246000,-156.2468871,0.00025528,2]
[426293318,1782250246000,-1022.25,0.00025786,2]
[426293320,1782250246000,-49442.71,0.00025786,2]
[426293319,1782250246000,-2951.45,0.00025786,2]
[426293324,1782250246000,-189.79909338,0.00025924,2]
[426293323,1782250246000,-339.295611,0.000259,2]
[426293314,1782250246000,-394.0,0.00025536,2]
[426293352,1782250246000,-1534.0,0.00026444,2]
[426293338,1782250246000,-150.0,0.00026093,2]
[426293348,1782250246000,-454.427197,0.00026376,2]
[426293376,1782250246000,-394.48776229,0.00026673,2]
[426293378,1782250246000,-381.65645949,0.00026673,2]
[426293372,1782250246000,-519.34504671,0.00026673,2]
[426293374,1782250246000,-415.44260055,0.00026673,2]
[426293379,1782250246000,-204.0118536,0.00026673,2]
[426293371,1782250246000,-428.16790424,0.00026673,2]
[426293377,1782250246000,-386.81305286,0.00026673,2]
[426293380,1782250246000,-385.31447294,0.00026673,2]
[426293375,1782250246000,-304.31746331,0.00026673,2]
[426293383,1782250246000,-326.0,0.00026703,7]
[426293384,1782250246000,-339.18724664,0.00026761,2]
[426293382,1782250246000,-301.65094097,0.00026677,2]
[426293388,1782250246000,-391.57836634,0.00026761,2]
[426293386,1782250246000,-412.17436352,0.00026761,2]
[426293387,1782250246000,-607.751551,0.00026761,2]
[426293390,1782250246000,-152.63920562,0.00026761,2]
[426293389,1782250246000,-511.37592408,0.00026761,2]
[426293350,1782250246000,-150.0,0.00026376,5]
[426293381,1782250246000,-309.96394595,0.00026673,2]
[426293373,1782250246000,-363.57134098,0.00026673,2]
[426293385,1782250246000,-380.46534551,0.00026761,2]
[426293370,1782250246000,-382.11280776,0.00026673,2]
[426293345,1782250246000,-436.840381,0.00026372,2]
[426293369,1782250246000,-226.63246376,0.00026673,2]
[426293344,1782250246000,-1538.77,0.000263,7]
[426293353,1782250246000,-15239.35068509,0.00026444,2]
[426293354,1782250246000,-530.0,0.00026447,2]
[426293356,1782250246000,-2991.49051684,0.00026472,2]
[426293357,1782250246000,-357.0,0.00026491,7]
[426293358,1782250246000,-578.20924308,0.00026492,2]
[426293355,1782250246000,-200.0,0.00026472,2]
[426293359,1782250246000,-527.32278436,0.00026492,2]
[426293391,1782250246000,-358.89383821,0.00026761,2]
[426293360,1782250246000,-1915.47834585,0.00026492,2]
[426293367,1782250246000,-680.0,0.00026667,8]
[426293365,1782250246000,-2752.935,0.00026556,2]
[426293366,1782250246000,-15239.35068509,0.00026667,2]
[426293364,1782250246000,-151.0,0.00026492,2]
[426293368,1782250246000,-356.81692279,0.00026673,2]
[426293362,1782250246000,-628.78788257,0.00026492,2]
[426293361,1782250246000,-201.93286098,0.00026492,2]
[426293363,1782250246000,-217.15233878,0.00026492,2]
[426293424,1782250247000,-394.33200254,0.00026805,2]
[426293417,1782250247000,-309.65846975,0.00026805,2]
[426293418,1782250247000,-381.35903683,0.00026805,2]
[426293419,1782250247000,-305.64073074,0.00026805,2]
[426293420,1782250247000,-209.24814807,0.00026805,2]
[426293421,1782250247000,-213.60444313,0.00026805,2]
[426293423,1782250247000,-337.97537573,0.00026805,2]
[426293426,1782250247000,-15239.35068509,0.00026889,2]
[426293427,1782250247000,-545.08,0.00027,2]
[426293422,1782250247000,-312.49377421,0.00026805,2]
[426293433,1782250247000,-709.0,0.00027005,10]
[426293429,1782250247000,-500.0,0.00027,7]
[426293430,1782250247000,-500.0,0.00027,7]
[426293428,1782250247000,-400379.94113713,0.00027,7]
[426293432,1782250247000,-500.0,0.00027,7]
[426293436,1782250247000,-670.58624095,0.00027039,2]
[426293435,1782250247000,-599.60298507,0.00027039,2]
[426293434,1782250247000,-200.0,0.0002702,2]
[426293438,1782250247000,-527.32278436,0.0002704,2]
[426293415,1782250247000,-413.25806552,0.00026805,2]
[426293425,1782250247000,-210.37268652,0.00026805,2]
[426293416,1782250247000,-229.75909102,0.00026805,2]
[426293398,1782250247000,-598.75323209,0.00026761,2]
[426293413,1782250247000,-242.02757478,0.00026805,2]
[426293392,1782250247000,-179.21411992,0.00026761,2]
[426293394,1782250247000,-350.62169055,0.00026761,2]
[426293437,1782250247000,-251.54599187,0.0002704,2]
[426293396,1782250247000,-327.08851951,0.00026761,2]
[426293393,1782250247000,-355.86811526,0.00026761,2]
[426293395,1782250247000,-350.63639842,0.00026761,2]
[426293397,1782250247000,-221.81365674,0.00026761,2]
[426293400,1782250247000,-333.08633932,0.00026761,2]
[426293399,1782250247000,-314.36466903,0.00026761,2]
[426293402,1782250247000,-306.38928385,0.00026761,2]
[426293403,1782250247000,-1915.47834585,0.00026766,2]
[426293401,1782250247000,-190.02590308,0.00026761,2]